fUST/lending_fUST_20240220
["ID","MTS","AMOUNT","RATE_DAILY","PERIOD"]
[314536848,1708407039189,-500.0,0.00021916,2]
[314536850,1708407039199,-500.0,0.00021916,2]
[314536852,1708407039209,-500.0,0.00021916,2]
[314536854,1708407039218,-479.03416191,0.00021916,2]
[314536856,1708407039227,-500.0,0.00021916,2]
[314536858,1708407039236,-500.0,0.00021916,2]
[314536860,1708407039247,-500.0,0.00021916,2]
[314536862,1708407039258,-500.0,0.00021916,2]
[314536864,1708407039267,-500.0,0.00021916,2]
[314536866,1708407039276,-500.0,0.00021916,2]
[314536868,1708407039285,-500.0,0.00021916,2]
[314536870,1708407039294,-500.0,0.00021916,2]
[314536872,1708407039304,-500.0,0.00021916,2]
[314536874,1708407039316,-500.0,0.00021916,2]
[314536876,1708407039325,-500.0,0.00021916,2]
[314536878,1708407039334,-200.0,0.00021916,2]
[314536880,1708407039343,-500.0,0.00021916,2]
[314536882,1708407039354,-500.0,0.00021916,2]
[314536884,1708407039365,-500.0,0.00021916,2]
[314536886,1708407039374,-500.0,0.00021916,2]
[314536888,1708407039383,-500.0,0.00021916,2]
[314536890,1708407039393,-500.0,0.00021916,2]
[314536892,1708407039402,-646.41355541,0.00021916,2]
[314536894,1708407039412,-1388.985169,0.00021916,2]
[314536896,1708407039421,-500.0,0.00021917,2]
[314536898,1708407039430,-271.90117501,0.00021917,2]
[314536900,1708407039440,-500.0,0.00021917,2]
[314536902,1708407039450,-500.0,0.00021917,2]
[314536904,1708407039460,-500.0,0.00021917,2]
[314536906,1708407039470,-500.0,0.00021917,2]
[314536908,1708407039480,-500.0,0.00021917,2]
[314536910,1708407039490,-500.0,0.00021917,2]
[314536912,1708407039499,-500.0,0.00021917,2]
[314536914,1708407039509,-500.0,0.00021917,2]
[314536916,1708407039519,-500.0,0.00021917,2]
[314536918,1708407039528,-500.0,0.00021917,2]
[314536920,1708407039537,-500.0,0.00021917,2]
[314536922,1708407039547,-1233.7,0.00021917,2]
[314536924,1708407039556,-437052.36278606,0.00021917,2]
[314537365,1708407312403,67.63833413,0.00032656,120]
[314537448,1708408231871,-487.04243643,0.00019816,2]
[314537873,1708408237771,-438.49511757,0.00019816,2]
[314537874,1708408237781,-32.44806931,0.00019817,2]
[314537875,1708408237793,-527.6316157,0.00019817,2]
[314537876,1708408237803,-9767.16821035,0.00020128,2]
[314537877,1708408237812,-274.89016684,0.00020128,2]
[314537878,1708408237821,-9988.574725,0.00020867,2]
[314537879,1708408237830,-171.81213746,0.00021717,2]
[314537880,1708408237840,-4625.29739656,0.00021817,2]
[314537881,1708408237849,-14618.69095519,0.00021817,2]
[314537882,1708408237858,-303.9074369,0.00021817,2]
[314537883,1708408237867,-1606.11,0.00021907,3]
[314537884,1708408237877,-500.0,0.00021916,2]
[314537885,1708408237886,-500.0,0.00021916,2]
[314537886,1708408237895,-500.0,0.00021916,2]
[314537887,1708408237905,-500.0,0.00021916,2]
[314537888,1708408237914,-500.0,0.00021916,2]
[314537889,1708408237923,-500.0,0.00021916,2]
[314537890,1708408237932,-500.0,0.00021916,2]
[314537891,1708408237944,-500.0,0.00021916,2]
[314537892,1708408237953,-500.0,0.00021916,2]
[314537893,1708408237963,-492.72633525,0.00021916,2]
[314537894,1708408237973,-358.07395643,0.00021916,2]
[314537895,1708408237982,-266.104821,0.00021916,2]
[314537896,1708408237992,-500.0,0.00021916,2]
[314537897,1708408238001,-500.0,0.00021916,2]
[314537898,1708408238011,-500.0,0.00021916,2]
[314537899,1708408238020,-500.0,0.00021916,2]
[314537900,1708408238030,-500.0,0.00021916,2]
[314537901,1708408238039,-500.0,0.00021916,2]
[314537902,1708408238048,-500.0,0.00021916,2]
[314537903,1708408238057,-500.0,0.00021916,2]
[314537904,1708408238066,-500.0,0.00021916,2]
[314537905,1708408238075,-499.99999999,0.00021916,2]
[314537906,1708408238084,-493.92406662,0.00021916,2]
[314537907,1708408238094,-600.0,0.00021916,2]
[314537908,1708408238103,-360.0,0.00021916,2]
[314537909,1708408238112,-450.0,0.00021916,2]
[314537910,1708408238121,-450.0,0.00021916,2]
[314537911,1708408238130,-300.0,0.00021916,2]
[314537912,1708408238140,-593.71024857,0.00021916,2]
[314537913,1708408238149,-600.0,0.00021916,2]
[314537914,1708408238158,-195.0,0.00021916,2]
[314537915,1708408238167,-195.0,0.00021916,2]
[314537916,1708408238177,-164.86675073,0.00021916,2]
[314537917,1708408238186,-195.0,0.00021916,2]
[314537918,1708408238194,-195.0,0.00021916,2]
[314537919,1708408238203,-195.0,0.00021916,2]
[314537920,1708408238212,-195.0,0.00021916,2]
[314537921,1708408238221,-195.0,0.00021916,2]
[314537922,1708408238230,-176.7130545,0.00021916,2]
[314537923,1708408238239,-195.0,0.00021916,2]
[314537924,1708408238248,-195.0,0.00021916,2]
[314537925,1708408238257,-334.1548573,0.00021916,2]
[314537926,1708408238266,-286.12858253,0.00021916,2]
[314537927,1708408238276,-427920.64850071,0.00021917,2]
[314537928,1708408238288,-365.89957934,0.00021917,2]
[314537929,1708408238300,-1123.52549523,0.00021917,2]
[314537933,1708408240957,-329.7518327,0.00021917,2]
[314537934,1708408240972,-999.87012642,0.00021917,2]
[314537945,1708408245827,-1434.96,0.00021907,3]
[314537946,1708408245837,-8279.05674112,0.00021917,2]
[314538037,1708409431976,-213.04130257,0.00019666,2]
[314538040,1708409431987,-218.2640548,0.00019667,2]
[314538043,1708409431997,-649.18669063,0.00019817,2]
[314538046,1708409432006,-258.0,0.00020127,2]
[314538049,1708409432016,-1625.47462783,0.00020128,2]
[314538051,1708409432025,-1771.92710719,0.00020128,2]
[314538125,1708409437917,-1995.93743375,0.00020128,2]
[314538127,1708409437928,-892.67440871,0.00020128,2]
[314538890,1708410643191,-432.79112708,0.000189,2]
[314538892,1708410643200,-169.817487,0.00019515,2]
[314538894,1708410643209,-171.81213746,0.00020029,2]
[314538896,1708410643218,-12847.25876472,0.00020128,2]
[314538898,1708410643227,-802.33988045,0.00020128,2]
[314538900,1708410643236,-5282.95242939,0.00020128,2]
[314538902,1708410643246,-5000.0,0.00020129,2]
[314538921,1708410643254,-5000.0,0.00020129,2]
[314538923,1708410643433,-5000.0,0.00020129,2]
[314538925,1708410643443,-2028.77822559,0.00020129,2]
[314538927,1708410643452,-11666.28621322,0.00021,2]
[314538929,1708410643462,-6451.19020492,0.00021,2]
[314538930,1708410643471,-5499.99999403,0.00021,2]
[314538931,1708410643481,-37490.01715628,0.00021425,2]
[314539000,1708411832348,-432.79112708,0.00019325,2]
[314539002,1708411832358,-171.81213746,0.00020029,2]
[314539004,1708411832368,-7989.13715335,0.00020128,2]
[314539006,1708411832377,-368.8855381,0.00020129,2]
[314539008,1708411832386,-5000.0,0.00020129,2]
[314539010,1708411832395,-45144.50701606,0.00020129,2]
[314539012,1708411832404,-2144.36408327,0.00020129,2]
[314539014,1708411832413,-893.56599448,0.00020129,2]
[314539016,1708411832422,-59.22748582,0.00020521,2]
[314539921,1708411843407,-110.59000118,0.00020521,2]
[314539923,1708411843417,-1770.24349882,0.00021415,3]
[314540208,1708411846413,-195.02650118,0.00021415,3]
[314540210,1708411846423,-57.23378363,0.00021425,2]
[314540216,1708411846470,-12452.74906009,0.00021425,2]
[314540218,1708411846479,-599.999999,0.000218,2]
[314540220,1708411846487,-196.9087562,0.000218,2]
[314540222,1708411846497,-1157.29481933,0.00021806,30]
[314540224,1708411846506,-5961.30736388,0.00021817,2]
[314541454,1708412537374,1000.0,0.00021,21]
[314541533,1708413032499,-925.537554,0.00019324,2]
[314541535,1708413032509,-288.52741806,0.00019325,2]
[314541537,1708413032519,-5000.0,0.00020142,2]
[314541539,1708413032529,-1219.70136476,0.00020142,2]
[314541541,1708413032538,-5000.0,0.00020142,2]
[314541543,1708413032548,-873.10496583,0.00020142,2]
[314541545,1708413032557,-4291.12869735,0.00020142,2]
[314541936,1708413043489,-288.57936878,0.00020142,2]
[314541943,1708413043542,-420.29193387,0.00020142,2]
[314541945,1708413043553,-11666.28621322,0.00021,2]
[314541947,1708413043562,-4840.00904046,0.00021,2]
[314541949,1708413043574,-1611.18116446,0.00021,2]
[314541951,1708413043582,-930.87329595,0.00021,2]
[314541953,1708413043591,-200.29361,0.00021599,2]
[314541954,1708413043600,-932.08,0.00021807,3]
[314541955,1708413043610,-151.95371845,0.00021816,2]
[314541956,1708413043619,-21570.31778705,0.00021817,2]
[314541959,1708413043628,-14618.69095519,0.00021817,2]
[314541962,1708413043638,-5282.95242939,0.00021817,2]
[314541965,1708413043648,-151.95371845,0.00021817,2]
[314541969,1708413043657,-205.356,0.00021826,2]
[314541970,1708413043667,-580.0,0.000219,2]
[314541973,1708413043675,-19483.14233303,0.00021904,2]
[314541976,1708413043685,-213.66404536,0.00021915,2]
[314541978,1708413043695,-330.5031,0.00021915,2]
[314541981,1708413043705,-273.55227487,0.00021916,2]
[314541983,1708413043714,-286.12858253,0.00021916,2]
[314541985,1708413043723,-234.0,0.00021916,2]
[314541987,1708413043732,-334.1548573,0.00021916,2]
[314541989,1708413043742,-224.96002522,0.00021916,2]
[314541991,1708413043751,-176.7130545,0.00021916,2]
[314541993,1708413043760,-342.0,0.00021916,2]
[314541995,1708413043769,-313.11307457,0.00021916,2]
[314541997,1708413043778,-342.0,0.00021916,2]
[314541999,1708413043787,-500.0,0.00021916,2]
[314542001,1708413043795,-499.99999999,0.00021916,2]
[314542002,1708413043805,-500.0,0.00021916,2]
[314542004,1708413043814,-500.0,0.00021916,2]
[314542006,1708413043823,-500.0,0.00021916,2]
[314542008,1708413043832,-500.0,0.00021916,2]
[314542009,1708413043841,-500.0,0.00021916,2]
[314542012,1708413043851,-500.0,0.00021916,2]
[314542014,1708413043860,-500.0,0.00021916,2]
[314542016,1708413043871,-500.0,0.00021916,2]
[314542018,1708413043880,-266.104821,0.00021916,2]
[314542019,1708413043889,-358.07395643,0.00021916,2]
[314542021,1708413043898,-492.72633525,0.00021916,2]
[314542023,1708413043908,-500.0,0.00021916,2]
[314542025,1708413043916,-500.0,0.00021916,2]
[314542027,1708413043925,-500.0,0.00021916,2]
[314542029,1708413043934,-500.0,0.00021916,2]
[314542031,1708413043943,-500.0,0.00021916,2]
[314542033,1708413043952,-500.0,0.00021916,2]
[314542035,1708413043961,-500.0,0.00021916,2]
[314542037,1708413043970,-500.0,0.00021916,2]
[314542039,1708413043979,-500.0,0.00021916,2]
[314542041,1708413043988,-1388.985169,0.00021916,2]
[314542043,1708413043997,-301055.55353552,0.00021917,2]
[314542301,1708414231744,-155.09305583,0.00019783,2]
[314542303,1708414231753,-404.21853948,0.00019784,2]
[314542305,1708414231763,-8494.362231,0.00019787,2]
[314542307,1708414231773,-418.72855314,0.00019816,2]
[314542309,1708414231781,-192.35161204,0.00019817,2]
[314542311,1708414231790,-13422.94928468,0.00020142,2]
[314542313,1708414231799,-223.39149862,0.00020142,2]
[314542315,1708414231808,-759.62998202,0.00020142,2]
[314543040,1708414240926,-302.35525246,0.00020142,2]
[314543236,1708414242898,-2073.10186576,0.00020142,2]
[314544916,1708415439050,-1403.987126,0.00018033,2]
[314544918,1708415439060,-404.21853948,0.00018117,2]
[314544920,1708415439069,-500.0,0.00018118,2]
[314544922,1708415439078,-155.10702385,0.00018136,2]
[314544924,1708415439087,-24900.0,0.00018137,2]
[314544926,1708415439096,-162.47812886,0.00018204,2]
[314544928,1708415439105,-1868.6479404,0.00018526,2]
[314544930,1708415439114,-429.03935974,0.000189,2]
[314544932,1708415439123,-692.27735945,0.00019178,2]
[314544933,1708415439133,-279.3586932,0.00019178,2]
[314544935,1708415439142,-162.47812884,0.00019499,2]
[314544937,1708415439151,-282.1635225,0.00019539,2]
[314544939,1708415439160,-151.10243852,0.0002,2]
[314544941,1708415439170,-5869.46623414,0.00020042,2]
[314544943,1708415439178,-2013.99,0.00020132,3]
[314544945,1708415439187,-3840.55,0.00020132,3]
[314544947,1708415439196,-311.84,0.00020132,3]
[314544949,1708415439205,-3200.45,0.00020132,3]
[314544951,1708415439214,-155.92,0.00020132,3]
[314544952,1708415439223,-1864.91289976,0.00020142,2]
[314544954,1708415439232,-41369.65537576,0.00020142,2]
[314544956,1708415439241,-5000.0,0.00020142,2]
[314544958,1708415439251,-50000.0,0.00020142,2]
[314544960,1708415439260,-50000.0,0.00020142,2]
[314544962,1708415439272,-50000.0,0.00020142,2]
[314544964,1708415439280,-50000.0,0.00020142,2]
[314544966,1708415439290,-50000.0,0.00020142,2]
[314544968,1708415439299,-50000.0,0.00020142,2]
[314544970,1708415439308,-50000.0,0.00020142,2]
[314544972,1708415439317,-50000.0,0.00020142,2]
[314544974,1708415439326,-95365.62143441,0.00020142,2]
[314544976,1708415439335,-50000.0,0.00020142,2]
[314544978,1708415439344,-98609.68643032,0.00020142,2]
[314544980,1708415439353,-151.0,0.00020142,2]
[314544982,1708415439363,-151.0,0.00020142,2]
[314545003,1708415439553,-151.0,0.00020142,2]
[314545005,1708415439563,-151.0,0.00020142,2]
[314545006,1708415439572,-151.0,0.00020142,2]
[314545008,1708415439582,-191.008126,0.00020142,2]
[314545010,1708415439592,-151.0,0.00020142,2]
[314545012,1708415439601,-151.0,0.00020142,2]
[314545014,1708415439610,-151.0,0.00020142,2]
[314545016,1708415439619,-151.0,0.00020142,2]
[314545018,1708415439628,-151.0,0.00020142,2]
[314545020,1708415439637,-151.0,0.00020142,2]
[314545021,1708415439647,-151.0,0.00020142,2]
[314545023,1708415439656,-212.777483,0.00020142,2]
[314545025,1708415439667,-526.88478541,0.00020142,2]
[314545027,1708415439676,-5282.95242939,0.00020142,2]
[314545029,1708415439685,-151.0,0.00020142,2]
[314545031,1708415439694,-151.0,0.00020142,2]
[314545033,1708415439704,-151.0,0.00020142,2]
[314545035,1708415439715,-173.091994,0.00020142,2]
[314545037,1708415439725,-151.0,0.00020142,2]
[314545039,1708415439735,-151.0,0.00020142,2]
[314545041,1708415439745,-151.0,0.00020142,2]
[314545043,1708415439754,-291.147332,0.00020142,2]
[314545045,1708415439764,-3526.34423926,0.00020142,2]
[314545047,1708415439773,-300.0,0.00020437,2]
[314545049,1708415439785,-300.0,0.00020734,2]
[314545051,1708415439797,-162.47812884,0.00020794,2]
[314545053,1708415439806,-348.3559103,0.00020822,2]
[314545055,1708415439815,-500.0,0.00020822,2]
[314545057,1708415439824,-500.0,0.00020822,2]
[314545059,1708415439834,-500.0,0.00020822,2]
[314545061,1708415439844,-517.65418873,0.00020822,2]
[314545062,1708415439853,-500.0,0.00020822,2]
[314545064,1708415439863,-500.0,0.00020822,2]
[314545067,1708415439873,-500.0,0.00020822,2]
[314545068,1708415439883,-500.0,0.00020822,2]
[314545070,1708415439895,-500.0,0.00020822,2]
[314545072,1708415439904,-169.72869101,0.00020822,2]
[314545074,1708415439914,-626.76416031,0.00020822,2]
[314545076,1708415439923,-632.23556344,0.00020822,2]
[314545078,1708415439933,-632.73685683,0.00020822,2]
[314545080,1708415439942,-500.0,0.00020822,2]
[314545082,1708415439951,-500.0,0.00020822,2]
[314545084,1708415439960,-500.0,0.00020822,2]
[314545086,1708415439970,-500.0,0.00020822,2]
[314545088,1708415439979,-500.0,0.00020822,2]
[314545090,1708415439988,-500.0,0.00020822,2]
[314545092,1708415439997,-383.43784741,0.00020822,2]
[314545094,1708415440006,-487.56102827,0.00020822,2]
[314545096,1708415440017,-500.0,0.00020822,2]
[314545098,1708415440026,-500.0,0.00020822,2]
[314545100,1708415440035,-500.0,0.00020822,2]
[314545102,1708415440044,-500.0,0.00020822,2]
[314545104,1708415440053,-500.0,0.00020822,2]
[314545106,1708415440062,-500.0,0.00020822,2]
[314545108,1708415440072,-500.0,0.00020822,2]
[314545110,1708415440082,-500.0,0.00020822,2]
[314545112,1708415440091,-500.0,0.00020822,2]
[314545114,1708415440101,-476.29860415,0.00020822,2]
[314545116,1708415440110,-500.0,0.00020822,2]
[314545118,1708415440120,-500.0,0.00020822,2]
[314545120,1708415440129,-500.0,0.00020822,2]
[314545122,1708415440138,-500.0,0.00020822,2]
[314545124,1708415440148,-500.0,0.00020822,2]
[314545126,1708415440157,-500.0,0.00020822,2]
[314545128,1708415440167,-500.0,0.00020822,2]
[314545130,1708415440176,-500.0,0.00020822,2]
[314545132,1708415440186,-500.0,0.00020822,2]
[314545134,1708415440195,-500.0,0.00020822,2]
[314545135,1708415440204,-500.0,0.00020822,2]
[314545137,1708415440213,-500.0,0.00020822,2]
[314545139,1708415440222,-500.0,0.00020822,2]
[314545141,1708415440232,-500.0,0.00020822,2]
[314545143,1708415440240,-500.0,0.00020822,2]
[314545145,1708415440249,-500.0,0.00020822,2]
[314545147,1708415440259,-500.0,0.00020822,2]
[314545149,1708415440268,-500.0,0.00020822,2]
[314545151,1708415440277,-500.0,0.00020822,2]
[314545153,1708415440287,-500.0,0.00020822,2]
[314545155,1708415440295,-500.0,0.00020822,2]
[314545157,1708415440304,-500.0,0.00020822,2]
[314545159,1708415440313,-500.0,0.00020822,2]
[314545161,1708415440322,-500.0,0.00020822,2]
[314545163,1708415440331,-500.0,0.00020822,2]
[314545165,1708415440340,-5499.99999304,0.00021,2]
[314545167,1708415440349,-300.0,0.0002103,2]
[314545169,1708415440360,-306.8809035,0.00021178,2]
[314545171,1708415440370,-153.0,0.00021178,2]
[314545173,1708415440378,-399.9784959,0.00021178,2]
[314545175,1708415440387,-300.0,0.00021327,2]
[314545177,1708415440396,-636.72794121,0.00021452,2]
[314545179,1708415440406,-623.68,0.00021502,3]
[314545181,1708415440414,-311.84,0.00021502,3]
[314545183,1708415440423,-380.999,0.000216,3]
[314545185,1708415440432,-300.0,0.00021623,2]
[314545187,1708415440441,-200.0,0.00021698,2]
[314545188,1708415440450,-400.0,0.00021698,2]
[314545190,1708415440460,-206.37291,0.00021698,2]
[314545192,1708415440469,-212.85749,0.00021698,2]
[314545194,1708415440479,-400.0,0.00021698,2]
[314545197,1708415440490,-200.0,0.00021698,2]
[314545199,1708415440500,-400.0,0.00021698,2]
[314545201,1708415440509,-400.0,0.00021698,2]
[314545203,1708415440519,-200.0,0.00021698,2]
[314545205,1708415440529,-201.67865,0.00021698,2]
[314545206,1708415440538,-400.0,0.00021698,2]
[314545208,1708415440548,-400.0,0.00021698,2]
[314545210,1708415440557,-200.0,0.00021698,2]
[314545212,1708415440566,-200.0,0.00021698,2]
[314545214,1708415440576,-200.0,0.00021698,2]
[314545216,1708415440585,-200.0,0.00021698,2]
[314545218,1708415440594,-200.0,0.00021698,2]
[314545220,1708415440603,-200.0,0.00021698,2]
[314545222,1708415440613,-200.0,0.00021698,2]
[314545224,1708415440623,-200.0,0.00021698,2]
[314545226,1708415440633,-200.0,0.00021698,2]
[314545228,1708415440643,-200.0,0.00021698,2]
[314545230,1708415440653,-200.0,0.00021698,2]
[314545232,1708415440662,-200.0,0.00021698,2]
[314545234,1708415440671,-200.0,0.00021698,2]
[314545236,1708415440682,-200.0,0.00021698,2]
[314545238,1708415440692,-200.0,0.00021698,2]
[314545240,1708415440703,-200.0,0.00021698,2]
[314545242,1708415440712,-200.84794,0.00021698,2]
[314545244,1708415440722,-183.68435589,0.000218,2]
[314545246,1708415440733,-181.0279602,0.00021815,2]
[314545248,1708415440743,-276000.0,0.00021817,2]
[314545250,1708415440753,-2007.028755,0.000219,2]
[314545252,1708415440762,-580.0,0.000219,2]
[314545254,1708415440774,-16235.95194419,0.00021904,2]
[314545256,1708415440784,-1164.370995,0.00021915,2]
[314545258,1708415440796,-194.453166,0.00021916,2]
[314545260,1708415440806,-349.91006196,0.00021916,2]
[314545261,1708415440818,-265.92747491,0.00021916,2]
[314545263,1708415440828,-332.4,0.00021916,2]
[314545265,1708415440838,-300.0,0.00021916,2]
[314545267,1708415440848,-367805.98238294,0.00021917,2]
[314545270,1708415440864,-5502.74440674,0.00021917,2]
[314545272,1708415440876,-10210.58909309,0.00021917,2]
[314545274,1708415440888,-4894.91241629,0.00021917,2]
[314545782,1708415446006,-3777.90837061,0.00020042,2]
[314545784,1708415446015,-3777.90837052,0.00020635,2]
[314545786,1708415446026,-150.117,0.0002166,2]
[314545788,1708415446035,-56.05486331,0.00021907,3]
[314545790,1708415446046,-411.72513669,0.00021907,3]
[314545792,1708415446055,-30770.98115623,0.00021917,2]
[314548891,1708416210818,200.0,0.00029067,120]
[314548968,1708416632163,-155.108576,0.00019036,2]
[314548970,1708416632173,-7444.05437952,0.00019037,2]
[314549012,1708416638059,-2544.52034548,0.00019037,2]
[314549014,1708416638069,-701.993563,0.00019335,2]
[314549016,1708416638078,-699.4799847,0.00019524,2]
[314549018,1708416638087,-925.537554,0.00019809,2]
[314549020,1708416638097,-286.02623983,0.00019817,2]
[314549022,1708416638107,-6800.02632094,0.00020142,2]
[314549024,1708416638116,-355.18842838,0.00020142,2]
[314549027,1708416638129,-11754.41867882,0.00020142,2]
[314549030,1708416638142,-5000.0,0.00020142,2]
[314549032,1708416638153,-5000.0,0.00020142,2]
[314549035,1708416638166,-12807.54037695,0.00020142,2]
[314549038,1708416638174,-2379.80264351,0.00021,2]
[314549041,1708416638184,-2731.59367328,0.00021,2]
[314549044,1708416638193,-153.0,0.0002137,2]
[314549046,1708416638202,-153.0,0.0002137,2]
[314549048,1708416638211,-200.0,0.00021698,2]
[314549050,1708416638220,-400.0,0.00021698,2]
[314549052,1708416638229,-200.0,0.00021698,2]
[314549054,1708416638238,-400.0,0.00021698,2]
[314549056,1708416638247,-200.0,0.00021698,2]
[314549058,1708416638257,-200.0,0.00021698,2]
[314549060,1708416638266,-200.0,0.00021698,2]
[314549062,1708416638276,-200.0,0.00021698,2]
[314549064,1708416638286,-200.0,0.00021698,2]
[314549066,1708416638295,-200.0,0.00021698,2]
[314549068,1708416638305,-200.0,0.00021698,2]
[314549070,1708416638314,-200.0,0.00021698,2]
[314549072,1708416638324,-200.0,0.00021698,2]
[314549074,1708416638333,-200.0,0.00021698,2]
[314549076,1708416638343,-200.0,0.00021698,2]
[314549078,1708416638351,-200.0,0.00021698,2]
[314549079,1708416638361,-200.0,0.00021698,2]
[314549082,1708416638373,-200.0,0.00021698,2]
[314549084,1708416638383,-200.0,0.00021698,2]
[314549086,1708416638392,-200.0,0.00021698,2]
[314549088,1708416638401,-200.0,0.00021698,2]
[314549090,1708416638410,-200.0,0.00021698,2]
[314549092,1708416638419,-200.0,0.00021698,2]
[314549094,1708416638428,-200.0,0.00021698,2]
[314549096,1708416638437,-200.0,0.00021698,2]
[314549097,1708416638446,-200.0,0.00021698,2]
[314549099,1708416638455,-200.0,0.00021698,2]
[314549101,1708416638464,-200.0,0.00021698,2]
[314549103,1708416638473,-200.0,0.00021698,2]
[314549105,1708416638482,-200.0,0.00021698,2]
[314549107,1708416638491,-200.0,0.00021698,2]
[314549109,1708416638500,-200.0,0.00021698,2]
[314549111,1708416638509,-221.75699,0.00021698,2]
[314549113,1708416638518,-306.5507139,0.000217,2]
[314549115,1708416638528,-284.79187339,0.00021717,2]
[314549117,1708416638538,-222.46661878,0.0002176,2]
[314549119,1708416638547,-5897.77,0.00021785,3]
[314549121,1708416638557,-7077.33,0.00021795,3]
[314549123,1708416638565,-8492.8,0.00021805,3]
[314549125,1708416638574,-467.76,0.00021806,3]
[314549127,1708416638583,-467.76,0.00021807,3]
[314549129,1708416638592,-1164.370995,0.00021815,2]
[314549131,1708416638601,-181.0279602,0.00021815,2]
[314549133,1708416638612,-212.6648869,0.00021815,2]
[314549135,1708416638621,-407.74763233,0.00021816,2]
[314549137,1708416638631,-181.41520631,0.00021816,2]
[314549139,1708416638640,-500.0,0.00021816,2]
[314549141,1708416638649,-500.0,0.00021816,2]
[314549143,1708416638658,-197.62986041,0.00021816,2]
[314549145,1708416638667,-500.0,0.00021816,2]
[314549146,1708416638675,-500.0,0.00021816,2]
[314549148,1708416638685,-500.0,0.00021816,2]
[314549150,1708416638693,-500.0,0.00021816,2]
[314549152,1708416638703,-500.0,0.00021816,2]
[314549154,1708416638712,-500.0,0.00021816,2]
[314549156,1708416638721,-200.0,0.00021816,2]
[314549158,1708416638730,-500.0,0.00021816,2]
[314549160,1708416638739,-500.0,0.00021816,2]
[314549162,1708416638748,-348.3559103,0.00021816,2]
[314549164,1708416638757,-500.0,0.00021816,2]
[314549166,1708416638767,-500.0,0.00021816,2]
[314549168,1708416638778,-383.43784741,0.00021816,2]
[314549170,1708416638787,-500.0,0.00021816,2]
[314549172,1708416638796,-500.0,0.00021816,2]
[314549174,1708416638805,-632.23556344,0.00021816,2]
[314549176,1708416638814,-500.0,0.00021816,2]
[314549178,1708416638823,-500.0,0.00021816,2]
[314549180,1708416638832,-500.0,0.00021816,2]
[314549182,1708416638841,-500.0,0.00021816,2]
[314549184,1708416638850,-500.0,0.00021816,2]
[314549186,1708416638859,-500.0,0.00021816,2]
[314549188,1708416638869,-500.0,0.00021816,2]
[314549190,1708416638878,-626.76416031,0.00021816,2]
[314549192,1708416638888,-517.65418873,0.00021816,2]
[314549194,1708416638897,-500.0,0.00021816,2]
[314549196,1708416638906,-500.0,0.00021816,2]
[314549198,1708416638915,-500.0,0.00021816,2]
[314549200,1708416638924,-487.56102827,0.00021816,2]
[314549202,1708416638933,-500.0,0.00021816,2]
[314549204,1708416638942,-500.0,0.00021816,2]
[314549206,1708416638951,-500.0,0.00021816,2]
[314549208,1708416638961,-500.0,0.00021816,2]
[314549210,1708416638969,-500.0,0.00021816,2]
[314549212,1708416638979,-500.0,0.00021816,2]
[314549214,1708416638988,-500.0,0.00021816,2]
[314549216,1708416638997,-500.0,0.00021816,2]
[314549218,1708416639008,-500.0,0.00021816,2]
[314549220,1708416639018,-500.0,0.00021816,2]
[314549222,1708416639029,-500.0,0.00021816,2]
[314549224,1708416639038,-476.85505839,0.00021816,2]
[314549227,1708416639054,-500.0,0.00021816,2]